bitfinex-derivatives/quotes_SOLF0:USTF0_20241211
["timestamp","ask_amount","ask_price","bid_price","bid_amount"]
[1733940711912,2.1923,227.9,227.85,2.1927]
[1733940712512,4.5323,227.9,227.85,2.1927]
[1733940713007,4.5323,227.9,227.82,12.17519751]
[1733940713509,2.7911,227.96,227.85,12.17519751]
[1733940713814,42.81877931,229.58,227.85,12.17519751]
[1733940713815,2.34,227.95,227.85,12.17519751]
[1733940714012,5.15492282,227.94,227.85,12.17519751]
[1733940714206,2.96302282,227.93,227.88,2.1924]
[1733940714409,2.96302282,227.92,227.88,2.1924]
[1733940714610,2.96302282,227.91,227.86,2.1926]
[1733940714806,2.34,227.95,227.85,12.17519751]
[1733940715010,2.1924,227.88,227.83,2.7447]
[1733940715210,2.96213319,227.87,227.82,17.4113915]
[1733940715509,2.1923,227.9,227.82,17.4113915]
[1733940715818,2.96187763,227.89,227.82,17.4113915]
[1733940716112,2.1923,227.9,227.85,2.1926]
[1733940716313,2.96202121,227.89,227.85,2.1926]
[1733940716516,2.96202121,227.88,227.82,17.4113915]
[1733940716714,2.1923,227.9,227.82,17.4113915]
[1733940716913,2.96132525,227.89,227.82,17.4113915]
[1733940717114,2.96132525,227.88,227.82,17.4113915]
[1733940717410,2.1923,227.9,227.82,17.4113915]
[1733940717615,2.96074509,227.89,227.82,17.4113915]
[1733940717914,2.96074509,227.88,227.82,17.4113915]
[1733940718118,2.1923,227.9,227.82,17.4113915]
[1733940718310,2.96037471,227.89,227.86,2.1926]
[1733940718508,2.1923,227.9,227.86,2.1926]
[1733940718815,2.96066191,227.89,227.86,2.1926]
[1733940719012,2.96066191,227.89,227.82,17.4113915]
[1733940719013,2.96066191,227.88,227.82,17.4113915]
[1733940719215,2.1923,227.9,227.86,2.1926]
[1733940719407,2.96033846,227.89,227.82,17.4113915]
[1733940719607,2.1923,227.9,227.82,17.4113915]
[1733940719811,2.96040391,227.89,227.82,17.4113915]
[1733940720009,2.1922,227.91,227.88,2.1924]
[1733940720211,2.96047516,227.9,227.88,2.1924]
[1733940720414,2.34,227.92,227.88,2.1924]
[1733940720611,2.96050399,227.91,227.88,2.1924]
[1733940720912,2.96050399,227.9,227.85,12.17519751]
[1733940721214,2.96039926,227.89,227.85,12.17519751]
[1733940721414,2.34,227.92,227.85,12.17519751]
[1733940721415,2.34,227.92,227.89,2.1923]
[1733940721611,2.96054247,227.91,227.89,2.1923]
[1733940721812,2.96054247,227.9,227.89,2.1923]
[1733940722009,2.96054247,227.91,227.89,2.1923]
[1733940722206,2.96054247,227.9,227.89,2.1923]
[1733940722407,2.96054247,227.91,227.85,12.17519751]
[1733940722609,2.96054247,227.9,227.85,12.17519751]
[1733940722811,2.34,227.92,227.84,12.17519751]
[1733940723016,2.96105421,227.91,227.84,12.17519751]
[1733940723213,2.96105421,227.91,227.82,5.23619399]
[1733940723214,2.96105421,227.9,227.87,12.17519751]
[1733940723414,2.34,227.95,227.91,2.1921]
[1733940723718,2.96255237,227.94,227.9,12.17519751]
[1733940723914,2.96255237,227.93,227.9,12.17519751]
[1733940724111,2.34,227.97,227.95,2.1917]
[1733940724414,5.6745,228.02,227.95,2.1917]
[1733940724415,2.96367649,227.96,227.95,2.1917]
[1733940724814,10.85380547,228.08,227.99,12.17519751]
[1733940725016,2.34,228.07,227.99,12.17519751]
[1733940725217,2.191,228.03,228.0,2.1913]
[1733940725412,2.34,228.02,227.9,8.2165]
[1733940725613,2.34,228.01,227.88,12.17519751]
[1733940725815,12.17519751,227.99,227.88,14.36759751]
[1733940726421,2.1922,227.91,227.88,12.17519751]
[1733940726721,2.34,227.92,227.86,2.1925]
[1733940727022,2.1923,227.9,227.86,2.1925]
[1733940727825,2.34,227.92,227.85,12.17519751]
[1733940728016,2.34,227.92,227.88,12.17519751]
[1733940729118,2.34,227.92,227.9,2.1922]
[1733940729320,2.34,227.92,227.88,12.17519751]
[1733940729321,2.34,227.96,227.88,12.17519751]
[1733940730320,2.34,227.96,227.91,12.17519751]
[1733940731015,4.5318,227.96,227.92,2.192]
[1733940731421,2.7715,228.01,227.91,12.17519751]
[1733940731616,2.34,227.97,227.91,12.17519751]
[1733940732823,2.1919,227.94,227.91,12.17519751]
[1733940734121,2.1922,227.91,227.88,14.36759751]
[1733940734320,2.34,227.97,227.85,14.87289751]
[1733940734523,2.34,227.97,227.85,12.17519751]
[1733940734723,2.1919,227.94,227.86,2.1926]
[1733940735025,2.34,227.97,227.86,2.1926]
[1733940735215,2.34,227.97,227.85,12.17519751]
[1733940735526,2.34,227.96,227.88,12.17519751]
[1733940735915,2.34,227.95,227.9,2.1922]
[1733940736119,2.34,227.95,227.88,12.17519751]
[1733940736524,2.34,227.95,227.82,5.23619399]
[1733940736824,2.92308611,227.94,227.85,12.17519751]
[1733940737020,2.92308611,227.93,227.85,12.17519751]
[1733940737220,2.92308611,227.92,227.85,12.17519751]
[1733940737420,2.34,227.95,227.85,12.17519751]
[1733940737421,2.92526212,227.91,227.85,12.17519751]
[1733940737726,2.1925,227.87,227.85,12.17519751]
[1733940737925,2.92526212,227.86,227.85,12.17519751]
[1733940739224,2.92526212,227.86,227.78,0.28176]
[1733940739428,2.92526212,227.85,227.78,0.28176]
[1733940739627,2.92526212,227.84,227.78,0.28176]
[1733940739826,2.1931,227.81,227.78,0.28176]
[1733940740121,2.92526212,227.8,227.78,0.28176]
[1733940740324,2.92526212,227.79,227.78,0.28176]
[1733940740518,2.1932,227.8,227.78,0.28176]
[1733940740717,2.92838708,227.79,227.78,0.28176]
[1733940741122,5.12168708,227.79,227.78,0.28176]
[1733940742031,2.92838708,227.79,227.67,12.17519751]
[1733940742223,5.26838708,227.78,227.67,12.17519751]
[1733940742429,2.1939,227.73,227.67,12.17519751]
[1733940742631,2.92838708,227.72,227.67,17.35606551]
[1733940742927,2.92838708,227.71,227.68,2.1944]
[1733940743120,2.92838708,227.7,227.68,2.1944]
[1733940743321,2.92838708,227.69,227.68,2.1944]
[1733940743723,2.34,227.73,227.68,2.1944]
[1733940743929,2.92714078,227.72,227.68,2.1944]
[1733940744129,2.92714078,227.72,227.67,12.35606551]
[1733940744130,2.92714078,227.71,227.62,2.1949]
[1733940744326,2.92246553,227.7,227.62,2.19664352]
[1733940744531,2.1947,227.65,227.62,2.19664352]
[1733940744826,2.92246553,227.64,227.62,2.19664352]
[1733940745126,2.92246553,227.63,227.62,2.19664352]
[1733940745928,2.92246553,227.63,227.57,49.86548609]
[1733940746132,2.92246553,227.62,227.59,2.1952]
[1733940746427,2.92246553,227.61,227.59,2.1952]
[1733940746733,2.92246553,227.6,227.59,2.1952]
[1733940747035,2.1947,227.65,227.6,2.1951]
[1733940747231,2.91452397,227.64,227.6,2.1951]
[1733940747432,2.91452397,227.63,227.6,2.1951]
[1733940747634,2.91452397,227.62,227.6,2.1951]
[1733940747833,2.1947,227.65,227.6,2.1951]
[1733940748132,2.91205688,227.64,227.6,2.1951]
[1733940748336,2.91205688,227.63,227.58,2.1952]
[1733940748532,2.1948,227.64,227.58,2.1952]
[1733940748533,2.91205688,227.62,227.58,2.1952]
[1733940748735,2.1948,227.64,227.58,2.1952]
[1733940748736,2.91205688,227.61,227.58,5.20746717]
[1733940748931,2.34,227.66,227.58,5.20746717]
[1733940749135,2.8357,227.71,227.62,2.1949]
[1733940749136,5.25002107,227.65,227.62,2.1949]
[1733940749430,2.91002107,227.64,227.62,2.1949]
[1733940749631,2.91002107,227.63,227.62,2.1949]
[1733940749840,2.34,227.7,227.66,2.1945]
[1733940750033,2.34,227.7,227.59,12.17519751]
[1733940750034,2.34,227.7,227.64,12.17519751]
[1733940750226,2.90957097,227.69,227.64,12.17519751]
[1733940750427,2.90957097,227.68,227.67,2.1945]
[1733940751436,5.1522,227.77,227.59,2.8764]
[1733940751638,2.9078791,227.76,227.63,12.17519751]
[1733940751930,2.9078791,227.75,227.63,12.17519751]
[1733940752131,2.1943,227.7,227.64,2.1947]
[1733940752339,2.9078791,227.69,227.64,2.1947]
[1733940752543,2.9078791,227.68,227.64,2.1947]
[1733940752729,2.9078791,227.67,227.64,2.1947]
[1733940752929,2.34,227.7,227.64,2.1947]
[1733940753129,2.90586811,227.69,227.64,2.1947]
[1733940753428,2.90551971,227.68,227.63,12.17519751]
[1733940753633,2.34,227.7,227.63,12.17519751]
[1733940753830,2.90490591,227.69,227.66,12.17519751]
[1733940754036,2.34,227.74,227.66,12.17519751]
[1733940754237,2.90544752,227.73,227.69,12.17519751]
[1733940754535,2.90544752,227.72,227.69,12.17519751]
[1733940754729,2.1937,227.75,227.7,2.1941]
[1733940754932,2.9052372,227.74,227.69,12.17519751]
[1733940755132,2.34,227.76,227.65,5.4899]
[1733940755332,2.90489366,227.75,227.68,12.17519751]
[1733940755639,2.90489366,227.74,227.7,2.1942]
[1733940755932,2.90489366,227.74,227.71,2.1941]
[1733940756334,2.34,227.76,227.71,2.1941]
[1733940756636,2.90436871,227.75,227.71,2.1941]
[1733940756827,2.90436871,227.74,227.71,2.1941]
[1733940757034,2.90436871,227.74,227.69,2.1942]
[1733940757035,2.90419612,227.73,227.69,2.1942]
[1733940757230,2.1938,227.74,227.69,2.1942]
[1733940757430,2.90409719,227.73,227.69,2.1942]
[1733940757631,2.1938,227.74,227.69,2.1942]
[1733940757834,2.90420966,227.73,227.69,2.1942]
[1733940758038,2.1938,227.74,227.69,2.1942]
[1733940758243,2.90388422,227.73,227.69,2.1942]
[1733940758437,2.1938,227.74,227.69,2.1942]
[1733940758637,2.90439672,227.73,227.69,2.1942]
[1733940758938,2.1938,227.74,227.69,2.1942]
[1733940759241,2.90436705,227.73,227.69,2.1942]
[1733940759539,2.1938,227.74,227.69,2.1942]
[1733940759737,2.90442029,227.73,227.69,2.1942]
[1733940760045,2.1938,227.74,227.69,2.1942]
[1733940760240,2.9043255,227.73,227.69,2.1942]
[1733940760441,2.1938,227.74,227.69,2.1942]
[1733940760636,2.1943,227.7,227.65,2.1946]
[1733940760835,2.34,227.71,227.65,2.1946]
[1733940761140,2.90414198,227.7,227.65,2.1946]
[1733940761439,2.34,227.71,227.58,5.20746717]
[1733940761741,2.90356736,227.7,227.58,5.20746717]
[1733940761941,2.90356736,227.69,227.58,5.20746717]
[1733940762136,2.90356736,227.68,227.58,5.20746717]
[1733940762340,2.34,227.71,227.58,5.20746717]
[1733940762341,2.90356736,227.67,227.58,5.20746717]
[1733940762541,12.17519751,227.72,227.6,2.1951]
[1733940762542,2.1947,227.65,227.6,2.1951]
[1733940762845,4.5347,227.65,227.6,2.1951]
[1733940763341,4.5347,227.65,227.61,2.195]
[1733940763641,2.34,227.65,227.6,12.17519751]
[1733940763838,2.34,227.67,227.6,12.17519751]
[1733940764039,4.5345,227.68,227.63,2.1948]
[1733940764343,2.90217156,227.67,227.63,2.1948]
[1733940764540,2.34,227.68,227.63,2.1948]
[1733940764843,2.90177585,227.67,227.63,2.1948]
[1733940765038,2.34,227.68,227.63,2.1948]
[1733940765234,2.90170019,227.67,227.63,2.1948]
[1733940765437,2.9014347,227.66,227.63,2.1948]
[1733940765638,2.1945,227.67,227.63,2.1948]
[1733940765834,2.34,227.68,227.6,12.17519751]
[1733940766046,2.90131816,227.67,227.6,12.17519751]
[1733940766240,2.1948,227.64,227.59,2.7261]
[1733940766643,2.1948,227.64,227.6,2.1951]
[1733940767045,2.34,227.68,227.6,2.1951]
[1733940767344,2.90023051,227.67,227.6,2.1951]
[1733940767546,2.90023051,227.66,227.6,2.1951]
[1733940767742,2.90023051,227.65,227.6,2.1951]
[1733940767943,2.1951,227.61,227.53,2.8136]
[1733940768138,2.1951,227.61,227.55,14.82769751]
[1733940768638,2.1951,227.61,227.57,2.1954]
[1733940770445,2.34,227.63,227.55,12.17519751]
[1733940770446,2.1952,227.59,227.55,12.17519751]
[1733940771640,2.1952,227.59,227.55,14.37079751]
[1733940771841,2.1952,227.59,227.55,12.17519751]
[1733940772140,2.34,227.63,227.55,12.17519751]
[1733940772343,2.90180441,227.62,227.55,12.17519751]
[1733940772648,2.90180441,227.61,227.55,12.17519751]
[1733940772843,2.90180441,227.61,227.58,2.1952]
[1733940773151,2.34,227.63,227.55,12.17519751]
[1733940773346,2.90241989,227.62,227.54,0.23898]
[1733940773553,2.90241989,227.61,227.54,12.41417751]
[1733940773754,2.34,227.63,227.54,12.41417751]
[1733940774048,2.1952,227.6,227.56,2.1955]
[1733940774250,2.1952,227.6,227.54,12.41417751]
[1733940774251,2.34,227.63,227.54,12.17519751]
[1733940774442,2.90272849,227.62,227.54,12.17519751]
[1733940774950,5.24272849,227.61,227.54,12.17519751]
[1733940775145,2.90272849,227.6,227.54,12.17519751]
[1733940775350,2.90272849,227.59,227.56,2.1955]
[1733940775552,2.1952,227.6,227.56,2.1955]
[1733940775754,2.90334713,227.59,227.56,2.1955]
[1733940775948,2.1952,227.6,227.56,2.1955]
[1733940776345,2.90453666,227.59,227.56,2.1955]
[1733940776554,2.1957,227.55,227.5,2.196]
[1733940776746,2.1957,227.55,227.48,12.17519751]
[1733940777256,2.90463898,227.54,227.48,12.17519751]
[1733940777449,2.1957,227.55,227.5,2.1961]
[1733940777650,2.90458404,227.54,227.48,12.17519751]
[1733940777952,2.1957,227.55,227.48,12.17519751]
[1733940778157,2.90429895,227.54,227.48,17.42003982]
[1733940778355,2.1957,227.55,227.48,17.42003982]
[1733940778356,2.90429895,227.53,227.48,17.42003982]
[1733940778545,2.1957,227.55,227.52,2.1959]
[1733940778748,2.90605501,227.54,227.52,2.1959]
[1733940778948,2.90605501,227.53,227.52,2.1959]
[1733940779159,2.34,227.56,227.48,17.42003982]
[1733940779347,5.10136189,227.55,227.51,2.196]
[1733940779552,2.90576189,227.54,227.51,2.196]
[1733940780457,2.90576189,227.54,227.45,0.31734]
[1733940780656,2.90576189,227.53,227.45,12.49253751]
[1733940780854,5.10176189,227.52,227.48,2.1963]
[1733940781056,2.90576189,227.51,227.48,2.1963]
[1733940781251,2.34,227.56,227.48,2.1963]
[1733940781558,2.9088982,227.55,227.48,2.1963]
[1733940781754,2.9088982,227.54,227.48,2.1963]
[1733940781955,2.9088982,227.53,227.48,2.1963]
[1733940782150,2.9088982,227.52,227.48,2.1963]
[1733940782355,2.9088982,227.51,227.48,2.1963]
[1733940782554,2.9088982,227.5,227.48,2.1963]
[1733940782754,2.9088982,227.49,227.48,2.1963]
[1733940782961,2.9088982,227.51,227.48,2.1963]
[1733940783161,2.9088982,227.5,227.46,5.2527499]
[1733940783860,2.9088982,227.49,227.47,2.1964]
[1733940784159,2.9088982,227.48,227.46,5.2527499]
[1733940784357,2.1959,227.52,227.46,5.2527499]
[1733940784559,2.9155388,227.51,227.46,5.2527499]
[1733940784860,2.9155388,227.5,227.48,12.17519751]
[1733940785056,2.9155388,227.49,227.48,14.37149751]
[1733940785261,2.9155388,227.49,227.48,12.17519751]
[1733940785465,2.9155388,227.49,227.48,14.37149751]
[1733940786361,2.9155388,227.49,227.48,2.1963]
[1733940786762,2.9155388,227.49,227.48,14.37149751]
[1733940790864,12.17519751,227.63,227.52,2.1959]
[1733940791066,2.34,227.6,227.52,2.1959]
[1733940791668,2.34,227.59,227.52,2.1959]
[1733940791968,2.34,227.59,227.5,12.17519751]
[1733940792471,2.1954,227.58,227.5,12.17519751]
[1733940792967,2.1954,227.58,227.53,2.1957]
[1733940793168,2.1955,227.57,227.53,2.1957]
[1733940794081,2.34,227.59,227.52,2.1959]
[1733940794273,2.34,227.59,227.49,12.17519751]
[1733940794472,2.34,227.59,227.5,2.196]
[1733940794778,2.34,227.59,227.47,12.17519751]
[1733940795576,2.1958,227.54,227.47,12.17519751]
[1733940795773,4.5358,227.54,227.47,12.17519751]
[1733940796374,2.34,227.54,227.47,12.17519751]
[1733940796571,2.34,227.54,227.5,12.17519751]
[1733940796778,2.34,227.58,227.53,12.17519751]
[1733940796975,12.17519751,227.66,227.53,12.17519751]
[1733940797169,182.90768436,227.67,227.53,12.17519751]
[1733940797480,2.34,227.66,227.56,12.17519751]
[1733940797777,2.34,227.65,227.56,12.17519751]
[1733940798478,2.1951,227.61,227.57,2.1954]
[1733940798876,2.34,227.65,227.56,12.17519751]
[1733940799080,2.1949,227.63,227.56,12.17519751]
[1733940799483,2.34,227.64,227.61,2.195]
[1733940799676,2.1947,227.65,227.61,2.195]
[1733940800178,2.1944,227.68,227.62,2.1949]
[1733940800376,2.34,227.68,227.59,12.17519751]
[1733940800971,2.1947,227.66,227.59,12.17519751]
[1733940801780,2.1947,227.65,227.59,12.17519751]
[1733940802082,2.34,227.69,227.59,14.37029751]
[1733940802277,2.34,227.69,227.59,2.1951]
[1733940802583,2.195,227.62,227.56,12.17519751]
[1733940802780,2.34,227.64,227.53,14.51519751]
[1733940803674,2.1951,227.61,227.53,14.51519751]
[1733940804881,2.1951,227.61,227.56,12.17519751]
[1733940805480,2.1951,227.61,227.56,14.37059751]
[1733940806181,2.1951,227.61,227.57,2.1954]
[1733940806381,2.195,227.62,227.56,12.17519751]
[1733940806679,2.34,227.66,227.56,12.17519751]
[1733940807084,2.1949,227.63,227.58,2.1953]
[1733940807276,2.1949,227.63,227.59,12.17519751]
[1733940808587,2.1949,227.63,227.59,14.37039751]
[1733940808881,2.34,227.66,227.59,12.17519751]
[1733940809586,2.1949,227.63,227.59,12.17519751]
[1733940809979,2.1949,227.63,227.59,14.37039751]
[1733940811179,2.1949,227.63,227.61,7.82233297]
[1733940812484,2.34,227.68,227.62,2.1949]
[1733940812691,2.34,227.68,227.65,7.82233297]
[1733940813390,2.1946,227.66,227.65,7.82233297]
[1733940814284,4.5345,227.68,227.65,7.82233297]
[1733940814489,16.04503297,227.75,227.67,7.82233297]
[1733940814696,16.04503297,227.75,227.69,7.82233297]
[1733940815089,2.1942,227.71,227.69,7.82233297]
[1733940817196,2.1947,227.65,227.62,7.82233297]
[1733940819394,2.1947,227.65,227.61,2.195]
[1733940820597,2.34,227.71,227.62,12.22070198]
[1733940820895,2.34,227.71,227.59,17.41664735]
[1733940820896,2.1939,227.73,227.69,2.1942]
[1733940821190,2.34,227.74,227.66,12.22070198]
[1733940821398,2.34,227.76,227.69,12.22070198]
[1733940821599,2.34,227.77,227.69,12.22070198]
[1733940821892,2.1935,227.77,227.71,2.194]
[1733940822088,5.20964386,227.8,227.71,2.194]
[1733940822292,2.34,227.79,227.72,12.22070198]
[1733940822895,2.34,227.86,227.78,12.22070198]
[1733940823201,2.34,227.87,227.78,12.22070198]
[1733940823400,5.3638,227.9,227.78,12.22070198]
[1733940823601,2.1925,227.87,227.81,12.22070198]
[1733940823793,5.3638,227.9,227.81,12.22070198]
[1733940824100,12.22070198,227.89,227.75,12.22070198]
[1733940824800,2.1932,227.81,227.76,2.1936]
[1733940825996,2.34,227.88,227.78,12.22070198]
[1733940826194,2.34,227.88,227.79,12.22070198]
[1733940826400,2.34,227.88,227.74,5.2669938]
[1733940826401,2.34,227.88,227.76,12.22070198]
[1733940826599,2.1931,227.81,227.76,12.22070198]
[1733940827199,2.1931,227.81,227.77,2.1935]
[1733940827705,14.56070198,227.88,227.76,12.22070198]
[1733940828501,2.1932,227.81,227.76,14.41430198]
[1733940828707,2.34,227.88,227.76,12.22070198]
[1733940829008,2.1929,227.84,227.79,12.22070198]
[1733940829203,2.34,227.88,227.79,12.22070198]
[1733940829410,5.3638,227.9,227.82,12.22070198]
[1733940829910,5.3638,227.9,227.79,12.22070198]
[1733940830106,5.3638,227.9,227.77,2.1935]
[1733940830407,5.3638,227.9,227.76,12.22070198]
[1733940830608,2.1933,227.8,227.76,12.22070198]
[1733940830808,2.34,227.85,227.73,12.22070198]
[1733940831310,2.1933,227.79,227.73,12.22070198]
[1733940831808,2.1936,227.76,227.72,7.42699789]
[1733940832014,2.1936,227.76,227.72,2.194]
[1733940832509,2.1935,227.77,227.72,2.194]
[1733940833008,2.1936,227.76,227.72,2.194]
[1733940833207,2.32,227.8,227.73,2.1939]
[1733940833709,2.32,227.8,227.7,12.22070198]
[1733940834008,2.1936,227.76,227.71,2.194]
[1733940834201,2.32,227.8,227.7,12.22070198]
[1733940834406,2.1938,227.75,227.7,14.41490198]
[1733940836910,2.1936,227.77,227.73,12.22070198]
[1733940837109,2.32,227.8,227.73,12.22070198]
[1733940837506,2.1934,227.78,227.73,14.41450198]
[1733940837711,2.1934,227.78,227.73,12.22070198]
[1733940838309,2.32,227.8,227.73,12.22070198]
[1733940838813,2.1934,227.79,227.73,14.41450198]
[1733940839407,2.1934,227.79,227.73,12.22070198]
[1733940839607,2.1934,227.79,227.74,2.1938]
[1733940839816,2.1934,227.78,227.74,2.1938]
[1733940840111,2.32,227.8,227.73,12.22070198]
[1733940840307,2.1935,227.77,227.73,12.22070198]
[1733940840609,2.32,227.8,227.73,12.22070198]
[1733940841210,2.1936,227.76,227.73,12.22070198]
[1733940841402,2.32,227.8,227.7,12.22070198]
[1733940841912,2.1937,227.75,227.7,14.41480198]
[1733940842113,2.32,227.8,227.73,12.22070198]
[1733940842310,2.1933,227.79,227.73,12.22070198]
[1733940842708,2.32,227.83,227.74,2.1938]
[1733940843114,2.1934,227.79,227.74,2.1938]
[1733940843613,2.32,227.83,227.73,14.41460198]
[1733940844012,2.32,227.83,227.72,2.32]
[1733940844206,2.32,227.83,227.79,12.22070198]
[1733940845616,2.193,227.82,227.79,12.22070198]
[1733940845827,12.22070198,227.92,227.79,12.22070198]
[1733940846119,2.32,227.89,227.79,12.22070198]
[1733940847122,2.32,227.89,227.81,7.80965292]
[1733940847326,7.80965292,227.88,227.81,7.80965292]
[1733940847720,2.193,227.83,227.81,7.80965292]
[1733940849931,2.32,227.89,227.81,7.80965292]
[1733940850130,2.32,227.89,227.86,7.80965292]
[1733940850427,7.6838,227.9,227.86,7.80965292]
[1733940850724,8.14363614,227.93,227.88,7.80965292]
[1733940850922,2.32,227.92,227.88,7.80965292]
[1733940851530,240.21612269,228.0,227.9,7.80965292]
[1733940851725,190.29174493,228.02,227.95,7.80965292]
[1733940851925,7.80965292,228.0,227.93,7.80965292]
[1733940852231,7.80965292,227.98,227.91,7.80965292]
[1733940852426,2.32,227.97,227.91,7.80965292]
[1733940852929,2.1921,227.92,227.91,7.80965292]
[1733940853128,2.32,227.97,227.91,7.80965292]
[1733940853430,2.32,227.97,227.93,7.80965292]
[1733940854735,2.1919,227.94,227.93,7.80965292]
[1733940857129,7.80965292,227.94,227.83,2.7416]
[1733940857331,7.80965292,227.92,227.86,7.80965292]
[1733940857633,7.80965292,227.9,227.83,7.80965292]
[1733940857936,2.32,227.89,227.83,7.80965292]
[1733940858125,2.32,227.89,227.74,5.5232]
[1733940858126,7.80965292,227.88,227.81,7.80965292]
[1733940859232,2.32,227.89,227.79,12.20132887]
[1733940859734,2.193,227.82,227.79,12.20132887]
[1733940860133,2.1931,227.81,227.79,12.20132887]
[1733940860424,2.32,227.89,227.79,12.20132887]
[1733940860734,2.32,227.89,227.79,14.39462887]
[1733940862537,2.193,227.82,227.79,14.39462887]
[1733940862735,2.32,227.89,227.79,12.20132887]
[1733940862935,182.48209201,227.89,227.79,12.20132887]
[1733940863335,2.1926,227.86,227.79,12.20132887]
[1733940864538,2.1926,227.86,227.8,2.1932]
[1733940864932,2.1926,227.86,227.79,12.20132887]
[1733940865233,2.1926,227.87,227.81,2.1931]
[1733940865534,2.32,227.89,227.79,12.20132887]
[1733940866238,5.4568,227.91,227.82,12.20132887]
[1733940866432,2.32,227.9,227.82,12.20132887]
[1733940867638,2.32,227.91,227.82,12.20132887]
[1733940868031,4.5122,227.91,227.82,12.20132887]
[1733940868629,4.5122,227.91,227.85,2.1927]
[1733940869240,2.1923,227.9,227.85,2.1927]
[1733940870143,2.32,227.91,227.85,12.20132887]
[1733940870434,2.32,227.91,227.79,2.32]
[1733940870435,2.32,227.95,227.88,12.20132887]
[1733940870736,2.32,227.95,227.91,2.1921]
[1733940870931,2.1917,227.96,227.91,2.1921]
[1733940871131,2.1918,227.95,227.9,2.1922]
[1733940872834,2.32,227.97,227.88,12.20132887]
[1733940872835,2.1917,227.96,227.91,2.1921]
[1733940873341,2.1917,227.97,227.92,2.192]
[1733940874039,2.32,227.98,227.91,12.20132887]
[1733940874239,4.5115,227.99,227.94,2.1918]
[1733940874436,2.32,227.99,227.91,12.20132887]
[1733940875339,5.19046473,228.0,227.91,12.20132887]
[1733940875539,2.32,227.99,227.91,12.20132887]
[1733940875734,2.1915,227.98,227.93,2.192]
[1733940875933,2.1915,227.98,227.91,12.20132887]
[1733940876333,4.5114,227.99,227.91,12.20132887]
[1733940876734,4.5114,227.99,227.93,2.1919]
[1733940876943,2.32,227.99,227.93,2.1919]
[1733940877140,2.1915,227.98,227.93,2.1919]
[1733940878137,2.1915,227.98,227.91,12.20132887]
[1733940879237,2.1915,227.98,227.95,7.80028521]
[1733940879635,2.32,227.99,227.97,7.80028521]
[1733940879844,13.20008521,228.04,227.97,7.80028521]
[1733940880042,2.32,228.03,227.97,7.80028521]
[1733940880246,2.1913,228.01,227.97,7.80028521]
[1733940880441,13.20008521,228.04,227.97,7.80028521]
[1733940880442,5.3998,228.04,227.97,7.80028521]
[1733940880641,2.32,228.04,227.99,7.80028521]
[1733940881039,2.191,228.03,227.99,7.80028521]
[1733940881346,2.32,228.05,227.99,7.80028521]
[1733940881643,2.32,228.05,227.89,2.32]
[1733940881941,2.32,228.05,227.83,5.6134]
[1733940881942,7.80028521,228.0,227.93,7.80028521]
[1733940882147,10.12028521,228.0,227.93,7.80028521]
[1733940883037,7.80028521,227.98,227.91,7.80028521]
[1733940883244,7.80028521,227.98,227.83,5.6134]
[1733940883245,2.1919,227.94,227.85,2.32]
[1733940883548,2.1919,227.94,227.9,7.80028521]
[1733940885646,2.1919,227.94,227.89,2.1923]
[1733940885847,2.1919,227.94,227.91,7.80028521]
[1733940886552,7.80028521,227.98,227.91,7.80028521]
[1733940886742,2.192,227.93,227.91,7.80028521]
[1733940887443,7.80028521,227.98,227.91,7.80028521]
[1733940887644,2.1919,227.94,227.91,7.80028521]
[1733940888150,2.1917,227.96,227.93,7.80028521]
[1733940888353,10.12028521,228.0,227.93,7.80028521]
[1733940888748,2.1917,227.96,227.93,7.80028521]
[1733940888943,10.12028521,228.0,227.93,7.80028521]
[1733940889454,2.1918,227.95,227.93,7.80028521]
[1733940890752,10.12028521,228.0,227.93,7.80028521]
[1733940891051,2.32,228.0,227.95,7.80028521]
[1733940892257,2.1916,227.97,227.95,7.80028521]
[1733940894854,2.1915,227.98,227.95,7.80028521]
[1733940895057,2.32,228.01,227.95,9.99208521]